Cogmind - Beta 14 @@@ ROGUE MODE // 2024.11.26 @ 11:51:46 Player: Fangrelle Result: Self-destructed Performance ------------- Evolutions (0) 0 Regions Visited (3) 600 Robots Destroyed (41) 205 Value Destroyed (948) 948 Prototype IDs (11) 220 Alien Tech Used (0) 0 Bonus (0) 0 TOTAL SCORE: 1973 Bonus ------- None Cogmind --------- Core Integrity 83/250 Matter 214/300 Energy 125/125 System Corruption 1% Temperature Cool (0) Movement Treading (160) Location -7/Recycling Parts ------- > --- POWER (1+1) ------ Light Ion Engine > --- PROPULSION (2+1) - Light Treads Light Treads (fused) (+) Spiked Treads > --- UTILITY (2+1) ---- Scrap Shield (+) Rainbow Chip > --- WEAPON (2) ------- Battle Rifle Makeshift Spear > --- INVENTORY (5) ---- High-capacity Storage Unit Makeshift Targeting Computer Autogun Dirty Datajack (11) Datajack Peak State ------------ > --- POWER ------------ Ion Engine > --- PROPULSION ------- Light Treads Light Treads Spiked Treads > --- UTILITY ---------- Scrap Shield Rainbow Chip > --- WEAPON ----------- EM Pulse Gun Autogun Dirty Datajack > --- INVENTORY -------- High-capacity Storage Unit Makeshift Targeting Computer Battle Cannon Datajack Makeshift Spear [Rating: 32] Favorites ----------- Power Ion Engine Engine Ion Engine Propulsion Light Treads Treads Light Treads Leg Aluminum Leg Wheel Wheel Utility Scrap Shield Device Subdweller Optics Storage High-capacity Storage Unit Processor Rainbow Chip Protection Scrap Shield Weapon EM Pulse Gun Energy Gun EM Pulse Gun Ballistic Gun Autogun Ballistic Cannon Battle Cannon Launcher Grenade Launcher Special Weapon Mining Laser Piercing Weapon Makeshift Spear Special Melee Weapon Datajack Build | -11 -10 -10 -7 ------- Run | Yrd Mat Sub Rec Slots Evolved . | . . . . Power . | . . . . Propulsion . | . . . . Utility . | . . . . Weapon . | . . . . Parts Attached 54 | . 17 37 . Power 2 | . 1 1 . Engine 2 | . 1 1 . Core . | . . . . Reactor . | . . . . Propulsion 10 | . 4 6 . Treads 8 | . 2 6 . Leg . | . . . . Wheel 2 | . 2 . . Hover . | . . . . Flight . | . . . . Utility 8 | . 3 5 . Device 2 | . 1 1 . Storage 1 | . 1 . . Processor 1 | . . 1 . Hackware . | . . . . Protection 4 | . 1 3 . Artifact . | . . . . Weapon 34 | . 9 25 . Energy Gun 6 | . 5 1 . Energy Cannon . | . . . . Ballistic Gun 10 | . . 10 . Ballistic Cannon 3 | . . 3 . Launcher 4 | . 3 1 . Special Weapon 4 | . . 4 . Impact Weapon . | . . . . Slashing Weapon . | . . . . Piercing Weapon 3 | . . 3 . Special Melee Weapon 4 | . 1 3 . Unidentified Prototypes . | . . . . Parts Lost 3 | . . 3 . Power 1 | . . 1 . Propulsion . | . . . . Utility . | . . . . Weapon 2 | . . 2 . Highest Loss Streak 2 | . . 2 . To Critical Strikes 1 | . . 1 . Average Slot Usage (%) 84 | . 98 81 80 Engine 9 | . 14 8 10 Treads 24 | . 11 27 30 Wheel 2 | . 16 . . Device 1 | . 3 1 . Storage 4 | . 14 2 . Processor 5 | . . 6 10 Protection 9 | . 9 9 10 Energy Gun 7 | . 19 5 . Ballistic Gun 8 | . 1 10 10 Ballistic Cannon 4 | . . 5 . Launcher 2 | . 5 1 . Piercing Weapon 2 | . . 2 10 Peak Build Rating 32 | . 9 32 29 Average Rating 20 | . 8 22 29 On Entrance 12 | 6 6 9 29 Naked Turns . | . . . . Heaviest Build 53 | 12 51 53 25 Greatest Support 60 | 20 40 60 60 Greatest Overweight (x) 15 | . 15 1 . Average Overweight (x) . | . 1 . . Largest Inventory Capacity 20 | . 20 20 5 Average Capacity 9 | . 18 7 5 Most Carried 20 | . 20 20 5 Average Carried 8 | . 16 7 5 Final Capacity 20 | 8 20 5 5 Final Carried 20 | 6 20 5 5 Class Distribution -------------------- 76% | Mutant 23% | Tank Dominant Class ---------------- Mutant | -10/Materials Mutant | -10/Subcaves Mutant | -7/Recycling Resources | -11 -10 -10 -7 ----------- Run | Yrd Mat Sub Rec Matter Collected 1611 | 200 424 987 . Remotely . | . . . . Salvage Created 1112 | . 533 579 . Parts 79 | . 45 34 . Haulers Intercepted 2 | . 2 . . Recyclers Shooed . | . . . . Parts Field Recycled . | . . . . Retrieved Matter . | . . . . Parts Self-Destructed 5 | . . 5 . Prevented . | . . . . Kills | -11 -10 -10 -7 ------- Run | Yrd Mat Sub Rec Combat Hostiles Destroyed 28 | . 13 15 . Guns 6 | . 2 4 . Cannons 8 | . . 8 . AOE 13 | . 11 2 . Classes Destroyed 12 | . 9 3 . Worker 2 | . 2 . . Builder 1 | . 1 . . Hauler 2 | . 2 . . Recycler 2 | . 2 . . Mechanic 1 | . 1 . . Operator 1 | . 1 . . Turret 2 | . . 2 . Watcher 2 | . 2 . . Swarmer 11 | . 9 2 . Grunt 4 | . 4 . . Sentry 1 | . . 1 . Subdweller 12 | . . 12 . Best Kill Streak 8 | . 8 2 . Combat Bots Only 6 | . 6 2 . Max Kills in Single Turn 2 | . 2 2 . Gunslinging . | . . . . Exploded 2 | . 2 2 . Melee . | . . . . Uniques/NPCs Destroyed . | . . . . Combat | -11 -10 -10 -7 -------- Run | Yrd Mat Sub Rec Hostile Shots Fired 214 | . 36 178 . Missed 95 | . 15 80 . Damage Taken 1658 | . 347 1311 . Core 167 | . 43 124 . Absorbed by Shields . | . . . . Redirected to Shielding 8 | . 8 . . Core Remaining (%) 100 | 100 . . . Volleys Fired 128 | . 40 88 . Largest 3 | . 2 3 . Hottest 140 | . 80 140 . Shots Fired 234 | . 74 160 . Gun 134 | . 54 80 . Cannon 57 | . . 57 . Launcher 28 | . 20 8 . Special 15 | . . 15 . Kinetic 123 | . 7 116 . Thermal 15 | . . 15 . Explosive 28 | . 20 8 . Electromagnetic 68 | . 47 21 . Robot Hit Streak 23 | . 9 23 . Robot Miss Streak 3 | . 3 2 . Penetration Max . | . . . . Secondary Targets . | . . . . Shots Hit Robots 153 | . 35 118 . Core Hits 69 | . 31 38 . Critical Kills . | . . . . Critical Parts Destroyed . | . . . . Critical Strikes 2 | . . 2 . Blast 2 | . . 2 . Melee Attacks 46 | . . 46 . Impact . | . . . . Slashing . | . . . . Piercing 46 | . . 46 . Sneak Attacks . | . . . . Combat Hostiles . | . . . . Follow-up Attacks . | . . . . Damage Inflicted 3479 | . 1377 2102 . Guns 1099 | . 350 749 . Cannons 798 | . . 798 . Explosions 1385 | . 1027 358 . Melee 197 | . . 197 . Ramming . | . . . . Kinetic 1463 | . 55 1408 . Thermal 157 | . 157 . . Explosive 1228 | . 870 358 . Electromagnetic 434 | . 295 139 . Impact . | . . . . Slashing . | . . . . Piercing 197 | . . 197 . Highest Corruption 1 | . 1 1 1 Average Corruption 1 | . 1 1 1 Corruption Purged . | . . . . Corruption Blocked . | . . . . Effects 62 | . 5 55 2 Message Errors 20 | . 3 17 . Matter Fused 11 | . . 10 1 Heat Flow Errors 9 | . . 9 . Energy Discharges 5 | . 1 4 . Parts Fused 1 | . . 1 . Data Loss (minor) 7 | . . 6 1 Data Loss (major) 7 | . 1 6 . Misfires 1 | . . 1 . Alerts 1 | . . 1 . Overload Shots . | . . . . Overflow Damage 43 | . 41 2 . Projectiles . | . . . . Explosions 41 | . 41 . . Melee 2 | . . 2 . Knockbacks 4 | . . 4 . Impact . | . . . . Kinetic 4 | . . 4 . Secondary . | . . . . Self-Inflicted Damage 158 | . 118 40 . Shots 6 | . 4 2 . Rammed . | . . . . Targets Rammed . | . . . . Kicked . | . . . . Crushed . | . . . . Highest Temperature 234 | . 84 234 . Average Temperature 45 | . 23 91 . Received Heat Transfer 618 | . 84 534 . Siege Activations . | . . . . Robots Corrupted . | . . . . Combat Hostiles . | . . . . Parts Fried 2 | . 2 . . Impact Corruptions . | . . . . Robots Melted . | . . . . Combat Hostiles . | . . . . Parts Melted 1 | . . 1 . Heat Transferred 250 | . 250 . . Parts Sabotaged . | . . . . Parts Stolen . | . . . . Parts Stripped . | . . . . Power Chain Reactions 4 | . 4 . . Alert | -11 -10 -10 -7 ------- Run | Yrd Mat Sub Rec Peak Influence 313 | . 303 . 313 Initial 313 | . . . 313 Average 165 | . 148 . 313 Maximum Alert Level 1 | . 1 . 1 Low Security (%) 64 | . 71 . . Level 1 35 | . 28 . 100 Level 2 . | . . . . Level 3 . | . . . . Level 4 . | . . . . Level 5 . | . . . . High Security . | . . . . Max Security . | . . . . Squads Dispatched 1 | . 1 . . Investigation 1 | . 1 . . Extermination . | . . . . Reinforcement . | . . . . Assault . | . . . . Garrison . | . . . . Intercept . | . . . . Searches Triggered . | . . . . Construction Impeded . | . . . . Haulers Reinforced . | . . . . Active Scanning Responses . | . . . . Cargo Convoy Interrupts . | . . . . Stealth | -11 -10 -10 -7 --------- Run | Yrd Mat Sub Rec Distress Signals 1 | . 1 . . Communications Jammed . | . . . . Distress Signals . | . . . . Times Spotted 64 | . 18 46 . Peak Tracking Total 4 | . 4 3 . Tactical Retreats 9 | . 1 8 . Traps | -11 -10 -10 -7 ------- Run | Yrd Mat Sub Rec Traps Triggered 2 | . 1 1 . Indirectly . | . . . . Trap Hack Attempts 108 | . 13 95 . Triggered . | . . . . Disarmed . | . . . . Reprogrammed 9 | . 1 8 . Reused 4 | . 1 3 . Traps Extracted . | . . . . Installed 1 | . . 1 . Triggered 3 | . 1 2 . Most Traps Carried 1 | . . 1 . Machines | -11 -10 -10 -7 ---------- Run | Yrd Mat Sub Rec Machines Disabled 5 | . 3 2 . Max in Single Turn 1 | . 1 1 . Machines Repaired . | . . . . Machines Dismantled . | . . . . Machines Sabotaged . | . . . . Overloaded Fab Kills . | . . . . Hacking | -11 -10 -10 -7 --------- Run | Yrd Mat Sub Rec Machines Accessed 13 | . 11 2 . Terminals 8 | . 8 . . Fabricators . | . . . . Repair Stations 1 | . 1 . . Recycling Units 2 | . 2 . . Scanalyzers . | . . . . Garrison Access . | . . . . Total Hacks 47 | . 35 12 . Successful 31 | . 19 12 . Failed 16 | . 16 . . Catastrophic 3 | . 3 . . Database Lockouts . | . . . . Manual 35 | . 31 . 4 Terminals 31 | . 31 . . Fabricators . | . . . . Repair Stations 1 | . 1 . . Recycling Units 3 | . 3 . . Scanalyzers . | . . . . Garrison Access . | . . . . Terminal Hacks 16 | . 4 12 . Record 11 | . . 11 . Robot Analysis 2 | . 2 . . Zone Layout 2 | . 2 . . Derelict Proto ID Bank 1 | . . 1 . Fabricator Hacks . | . . . . Repair Station Hacks . | . . . . Recycling Unit Hacks 2 | . 2 . . Retrieve Components 2 | . 2 . . Scanalyzer . | . . . . Garrison Access Hacks . | . . . . Unauthorized Hacks 13 | . 13 . . Terminals 12 | . 12 . . Assimilate 1 | . 1 . . Botnet 7 | . 7 . . Operators 2 | . 2 . . Skim 2 | . 2 . . Fabricators . | . . . . Repair Stations 1 | . 1 . . Mechanics 1 | . 1 . . Recycling Units . | . . . . Scanalyzers . | . . . . Garrison Access . | . . . . Data Cores Recovered 1 | . 1 . . Used . | . . . . Hacking Detections 11 | . 10 . 1 Full Trace Events 2 | . 2 . . Feedback Events 1 | . 1 . . Corruption 1 | . 1 . . Feedback Blocked . | . . . . Robot Schematics Acquired . | . . . . Robots Built . | . . . . Authchips . | . . . . Time . | . . . . Total Robot Build Rating . | . . . . Part Schematics Acquired . | . . . . Parts Built . | . . . . Authchips . | . . . . Time . | . . . . Total Part Build Rating . | . . . . Parts Repaired . | . . . . Time . | . . . . Parts Recycled . | . . . . Recycled Matter . | . . . . Retrieved Matter . | . . . . Retrieved Components 11 | . 11 . . Parts Scanalyzed . | . . . . Part Schematics Acquired . | . . . . Parts Damaged . | . . . . Bothacking | -11 -10 -10 -7 ------------ Run | Yrd Mat Sub Rec Used RIF Installer . | . . . . Robots Hacked . | . . . . Non-combat . | . . . . Combat . | . . . . Robot Hacks Applied . | . . . . Relay Couplers Released . | . . . . Fabnet Peak Effective % . | . . . . Robots Rewired . | . . . . Allies Hacked . | . . . . Hacks Repelled . | . . . . Allies | -11 -10 -10 -7 -------- Run | Yrd Mat Sub Rec Total Allies . | . . . . Largest Group . | . . . . Highest-Rated Group . | . . . . Highest-Rated Ally . | . . . . Total Orders . | . . . . Ally Attacks . | . . . . Total Damage . | . . . . Kills . | . . . . Allies Corrupted . | . . . . Allies Melted . | . . . . Intel | -11 -10 -10 -7 ------- Run | Yrd Mat Sub Rec Robot Analysis Total 2 | . 2 . . Derelict Logs Recovered 2 | . . 2 . Drone Launches . | . . . . Drone Recoveries . | . . . . Exploration | -11 -10 -10 -7 ------------- Run | Yrd Mat Sub Rec Turns Passed 10442 | . 1644 8609 189 Spaces Moved 5139 | 1 848 4172 118 Core 3 | . 3 . . Treads 4518 | . 228 4172 118 Legs 13 | 1 12 . . Wheels 605 | . 605 . . Hover . | . . . . Flight . | . . . . Fastest Speed 110 | 120 110 160 160 Average Speed 165 | 120 137 170 160 Slowest Speed 800 | 120 800 240 160 Overloaded Moves . | . . . . Propulsion Burnouts . | . . . . Robots Hopped . | . . . . Cave-ins Triggered . | . . . . Exploration Rate (%) 53 | 1 97 99 18 Regions Visited 3 Branch Regions 2 Pre-discovered Areas . | . . . . Known Exits Taken . | . . . . Unknown Exits Taken 3 | 1 1 1 . Scrap Searched 5 | . . 5 . Spaces Dug 22 | . 13 9 . Terrain Destroyed 143 | . 100 43 . Melee 8 | . . 8 . Projectile 2 | . . 2 . AOE 133 | . 100 33 . Terrain Rammed . | . . . . Walls Destroyed . | . . . . Machines Disabled . | . . . . Actions | -11 -10 -10 -7 --------- Run | Yrd Mat Sub Rec Total 6816 | . 1257 5441 118 Wait 1253 | . 298 955 . Move 5136 | . 847 4171 118 Hop . | . . . . Pick Up 43 | . 29 14 . Fast Attach 11 | . 1 10 . Attach 8 | . 5 3 . Detach 1 | . . 1 . Swap 35 | . 11 24 . Drop 35 | . 13 22 . Fire 128 | . 40 88 . Melee 46 | . . 46 . Ram . | . . . . Kick . | . . . . Crush . | . . . . Escape Stasis . | . . . . Rewire . | . . . . Trap 109 | . 13 96 . Miscellaneous 11 | . . 11 . Route ------- -11/Scrapyard -10/Materials (discovered 5 exits: [*Mat x3] / [*Min] / *Sub) -10/Subcaves (discovered 3 exits: [*Mat x2] / *Rec) -7/Recycling History --------- Turn | Location | Event 1 | -11/Scrapyard | Discovered new exit (range 0) 1 | -11/Scrapyard | Entered Materials 313 | -10/Materials | Build established: Mutant 486 | -10/Materials | Discovered new exit (range 16) 738 | -10/Materials | Discovered new exit (range 12) 893 | -10/Materials | Discovered new exit (range 13) 950 | -10/Materials | Discovered new exit (range 14) 1181 | -10/Materials | Discovered new exit (range 12) 1645 | -10/Materials | Entered Subcaves 1750 | -10/Subcaves | Learned Materials terminal intel 1774 | -10/Subcaves | Learned Materials emergency access door positions 1825 | -10/Subcaves | Discovered new exit (range 11) 2184 | -10/Subcaves | Shifting Twisted Machinery released Battle Cannon 2225 | -10/Subcaves | Disturbed a concealed Subdweller 3470 | -10/Subcaves | Core integrity fell below 50% 3784 | -10/Subcaves | Shifting Twisted Machinery released Sub. Machine Gun 3832 | -10/Subcaves | Shifting Twisted Machinery released Sub. Machine Gun 4343 | -10/Subcaves | Visited 4L-MR0's lab 4363 | -10/Subcaves | Found Rainbow Chip 4393 | -10/Subcaves | Attached Rainbow Chip, gained temporary slots: Power, Propulsion, Utility, Weapon 5552 | -10/Subcaves | Build established: Tank 6325 | -10/Subcaves | Build established: Mutant 7082 | -10/Subcaves | Build established: Tank 7619 | -10/Subcaves | Discovered new exit (range 6) 7677 | -10/Subcaves | A swath of the cavern ceiling suddenly collapsed 7838 | -10/Subcaves | Visited Clippyterm 7843 | -10/Subcaves | Learned Factory stockpile data 8215 | -10/Subcaves | Build established: Mutant 9438 | -10/Subcaves | Discovered new exit (range 3) 10254 | -10/Subcaves | Entered Recycling 10443 | -7/Recycling | Self-destructed Last Messages --------------- 09692_ EM Pulse Gun destroyed. 09694_ Temporary Weapon slot lost. 09715_ MSGN>LGMCC7ES#SRSJS&Y%BLDW9X